bitfinex-derivatives/quotes_SOLF0:USTF0_20241224
["timestamp","ask_amount","ask_price","bid_price","bid_amount"]
[1735080840033,7.93244756,197.24,197.18,2.5376]
[1735080843142,7.93244756,197.24,197.16,1.5562]
[1735080843343,7.93244756,197.24,197.17,2.5377]
[1735080850145,3.1,197.25,197.16,9.48864756]
[1735080850352,11.03244756,197.25,197.18,2.5376]
[1735080852053,11.03244756,197.25,197.19,2.5375]
[1735080857360,11.03244756,197.25,197.16,9.48864756]
[1735080858358,11.03244756,197.25,197.19,2.5375]
[1735080862761,3.1,197.25,197.19,2.5375]
[1735080863058,11.03244756,197.25,197.19,2.5375]
[1735080863254,3.1,197.25,197.19,2.5375]
[1735080863459,11.03244756,197.25,197.19,2.5375]
[1735080864657,1.6556,197.31,197.2,7.93244756]
[1735080864858,3.08,197.3,197.2,10.46974756]
[1735080865057,7.93244756,197.27,197.2,10.46974756]
[1735080865463,11.01244756,197.28,197.2,7.93244756]
[1735080866456,11.01244756,197.28,197.22,2.5371]
[1735080866764,11.01244756,197.28,197.22,10.46954756]
[1735080866960,3.08,197.28,197.22,10.46954756]
[1735080867463,11.01244756,197.28,197.22,10.46954756]
[1735080868662,7.93244756,197.28,197.22,10.46954756]
[1735080868959,11.01244756,197.28,197.22,10.46954756]
[1735080869863,11.01244756,197.28,197.22,2.5371]
[1735080870664,3.08,197.28,197.22,2.5371]
[1735080870864,11.01244756,197.28,197.22,2.5371]
[1735080872763,1.6621,197.32,197.24,7.93244756]
[1735080872966,11.01244756,197.31,197.24,7.93244756]
[1735080873763,3.08,197.31,197.23,2.5369]
[1735080873963,7.93244756,197.29,197.23,2.5369]
[1735080874766,3.08,197.31,197.24,7.93244756]
[1735080875560,11.01244756,197.31,197.24,7.93244756]
[1735080878668,11.01244756,197.31,197.23,2.5369]
[1735080878871,11.01244756,197.31,197.23,10.46934756]
[1735080879269,3.0667,197.38,197.27,7.93244756]
[1735080879470,69.6322206,197.33,197.27,7.93244756]
[1735080879668,66.5522206,197.33,197.27,7.93244756]
[1735080879867,66.5522206,197.33,197.28,2.5363]
[1735080880269,7.93244756,197.32,197.28,2.5363]
[1735080881168,66.5522206,197.33,197.28,2.5363]
[1735080881370,66.5522206,197.33,197.28,10.46874756]
[1735080881562,66.5522206,197.33,197.28,7.93244756]
[1735080881763,7.93244756,197.33,197.23,3.1122]
[1735080881965,7.93244756,197.33,197.26,7.93244756]
[1735080882963,7.93244756,197.33,197.26,10.46894756]
[1735080883371,7.93244756,197.35,197.26,10.46894756]
[1735080884178,7.93244756,197.35,197.27,2.5364]
[1735080885279,11.01244756,197.35,197.27,2.5364]
[1735080886276,3.08,197.35,197.28,2.5363]
[1735080886476,11.01244756,197.35,197.28,2.5363]
[1735080887269,11.01244756,197.35,197.28,10.46874756]
[1735080887673,11.01244756,197.35,197.27,7.93244756]
[1735080890277,11.01244756,197.35,197.26,10.46894756]
[1735080890879,3.08,197.35,197.28,7.93244756]
[1735080891776,4.835,197.41,197.28,7.93244756]
[1735080891777,6.54983544,197.48,197.28,7.93244756]
[1735080891976,7.93244756,197.37,197.28,7.93244756]
[1735080892178,11.01244756,197.37,197.28,7.93244756]
[1735080892577,7.93244756,197.39,197.3,10.46844756]
[1735080893674,11.01244756,197.39,197.3,10.46844756]
[1735080897081,3.08,197.39,197.31,2.5358]
[1735080897283,7.93244756,197.38,197.31,2.5358]
[1735080899079,3.08,197.4,197.33,2.5357]
[1735080899279,11.01244756,197.4,197.33,2.5357]
[1735080899583,7.93244756,197.4,197.33,2.5357]
[1735080899782,11.01244756,197.4,197.33,2.5357]
[1735080899983,11.01244756,197.4,197.32,7.93244756]
[1735080900281,3.08,197.4,197.32,7.93244756]
[1735080901478,3.08,197.4,197.35,2.5354]
[1735080901684,3.08,197.41,197.32,7.93244756]
[1735080902182,3.08,197.41,197.35,2.5354]
[1735080902382,3.08,197.41,197.29,4.7534]
[1735080902684,3.08,197.41,197.33,10.46814756]
[1735080902881,3.08,197.41,197.33,7.93244756]
[1735080903880,3.08,197.41,197.34,2.5355]
[1735080904685,3.08,197.41,197.33,7.93244756]
[1735080905685,3.08,197.41,197.37,2.5352]
[1735080907682,10.61634314,197.42,197.37,2.5352]
[1735080912285,2.68389558,197.42,197.37,2.5352]
[1735080913188,10.61634314,197.42,197.37,2.5352]
[1735080913691,10.61634314,197.42,197.38,2.535]
[1735080915787,7.93244756,197.42,197.38,2.535]
[1735080916983,7.93244756,197.42,197.37,2.5351]
[1735080917492,7.93244756,197.42,197.35,7.93244756]
[1735080918491,7.93244756,197.42,197.35,10.46774756]
[1735080920597,7.93244756,197.42,197.35,2.5353]
[1735080923594,61.33657184,197.44,197.35,2.5353]
[1735080923796,7.93244756,197.42,197.35,2.5353]
[1735080924296,3.12,197.46,197.35,10.46774756]
[1735080924494,7.93244756,197.44,197.35,10.46774756]
[1735080924796,7.93244756,197.44,197.38,2.535]
[1735080925392,7.93244756,197.45,197.38,2.535]
[1735080925994,7.93244756,197.45,197.37,10.46754756]
[1735080926989,7.93244756,197.45,197.37,7.93244756]
[1735080927298,7.93244756,197.43,197.32,74.1218752]
[1735080927500,7.93244756,197.43,197.34,7.93244756]
[1735080927694,7.93244756,197.43,197.35,2.5353]
[1735080927895,7.93244756,197.43,197.34,7.93244756]
[1735080928601,7.93244756,197.43,197.36,2.5353]
[1735080928802,7.93244756,197.43,197.36,10.46774756]
[1735080928995,7.93244756,197.43,197.36,2.5353]
[1735080930096,3.12,197.43,197.35,10.46784756]
[1735080931900,3.12,197.43,197.35,7.93244756]
[1735080936596,7.93244756,197.42,197.32,38.7378319]
[1735080936801,7.93244756,197.42,197.32,49.20607946]
[1735080937197,7.93244756,197.4,197.32,49.20607946]
[1735080937600,7.93244756,197.4,197.32,46.67027946]
[1735080939302,4.75,197.43,197.32,46.67027946]
[1735080939503,4.75,197.43,197.33,2.5356]
[1735080939802,7.93244756,197.42,197.32,46.67027946]
[1735080940302,7.93244756,197.42,197.34,2.5355]
[1735080941310,7.93244756,197.42,197.34,10.46794756]
[1735080942611,7.93244756,197.42,197.34,2.5355]
[1735080942799,4.75,197.43,197.34,2.5355]
[1735080943002,7.93244756,197.42,197.34,2.5355]
[1735080944209,7.93244756,197.4,197.34,2.5355]
[1735080944403,7.93244756,197.42,197.34,2.5355]
[1735080945609,7.93244756,197.4,197.32,2.5357]
[1735080947412,7.93244756,197.38,197.32,2.5357]
[1735080948815,7.93244756,197.4,197.32,2.5357]
[1735080949112,4.75,197.43,197.32,2.5357]
[1735080949312,7.93244756,197.4,197.32,2.5357]
[1735080952314,7.93244756,197.4,197.33,2.5356]
[1735080952516,7.93244756,197.4,197.33,10.46804756]
[1735080953416,7.93244756,197.4,197.33,2.5356]
[1735080953617,3.08,197.39,197.33,2.5356]
[1735080955212,3.08,197.39,197.34,2.5355]
[1735080955816,3.08,197.39,197.33,2.5356]
[1735080956009,3.08,197.39,197.32,7.93244756]
[1735080957218,3.08,197.39,197.32,10.46814756]
[1735080958018,3.08,197.39,197.32,7.93244756]
[1735080958218,3.08,197.39,197.33,2.5357]
[1735080958818,11.01244756,197.39,197.33,2.5357]
[1735080962215,3.08,197.39,197.33,2.5357]
[1735080962713,61.42496289,197.48,197.34,7.93244756]
[1735080963019,7.93244756,197.43,197.34,7.93244756]
[1735080963321,7.93244756,197.43,197.36,2.5353]
[1735080966122,7.93244756,197.43,197.34,7.93244756]
[1735080966323,11.01244756,197.43,197.35,2.5354]
[1735080967825,7.93244756,197.41,197.33,21.09696473]
[1735080968025,7.93244756,197.39,197.33,21.09696473]
[1735080969227,7.93244756,197.39,197.31,7.93244756]
[1735080972123,1.5758,197.42,197.31,7.93244756]
[1735080972427,7.93244756,197.39,197.31,7.93244756]
[1735080974130,1.5758,197.42,197.31,7.93244756]
[1735080974324,7.93244756,197.39,197.31,7.93244756]
[1735080974829,1.5758,197.42,197.31,7.93244756]
[1735080975030,7.93244756,197.39,197.29,21.09696473]
[1735080975227,7.93244756,197.37,197.29,29.02941229]
[1735080975433,3.08,197.36,197.29,29.02941229]
[1735080976135,3.08,197.36,197.29,7.93244756]
[1735080976424,7.93244756,197.35,197.28,61.45602241]
[1735080977030,3.08,197.36,197.28,40.35905768]
[1735080977226,11.01244756,197.36,197.28,40.35905768]
[1735080977837,11.01244756,197.36,197.29,7.93244756]
[1735080978332,11.01244756,197.36,197.28,40.35905768]
[1735080978933,11.01244756,197.36,197.28,42.89525768]
[1735080979339,11.01244756,197.36,197.29,7.93244756]
[1735080979635,11.01244756,197.36,197.28,38.74625768]
[1735080979936,11.01244756,197.36,197.29,7.93244756]
[1735080982734,11.01244756,197.36,197.28,38.74625768]
[1735080986029,3.08,197.36,197.25,12.62624756]
[1735080986334,3.08,197.36,197.27,7.93244756]
[1735080986535,11.01244756,197.36,197.27,7.93244756]
[1735080986739,11.01244756,197.36,197.28,2.5363]
[1735080987135,11.01244756,197.36,197.27,7.93244756]
[1735080987336,7.93244756,197.34,197.27,10.46884756]
[1735080988934,2.24144401,197.39,197.29,7.93244756]
[1735080989138,7.93244756,197.37,197.29,7.93244756]
[1735080989638,7.93244756,197.37,197.3,7.93244756]
[1735080990532,7.93244756,197.37,197.3,2.536]
[1735080990731,7.93244756,197.35,197.27,35.40880144]
[1735080990934,7.93244756,197.33,197.27,35.40880144]
[1735080991130,11.01244756,197.33,197.27,35.40880144]
[1735080991435,11.01244756,197.33,197.25,26.16421366]
[1735080991436,11.01244756,197.33,197.25,4.6938]
[1735080993444,7.93244756,197.31,197.25,4.6938]
[1735080993745,7.93244756,197.31,197.25,3.1031]
[1735080995140,3.08,197.33,197.25,3.1031]
[1735080995437,7.93244756,197.32,197.25,3.1031]
[1735080996050,7.93244756,197.3,197.21,21.09696473]
[1735080996233,7.93244756,197.3,197.22,7.93244756]
[1735080996439,7.93244756,197.28,197.21,21.09696473]
[1735080997044,7.93244756,197.28,197.2,9.55484756]
[1735080997239,3.08,197.27,197.2,9.55484756]
[1735080997542,7.93244756,197.26,197.19,38.66001349]
[1735080998243,7.93244756,197.26,197.19,3.2513]
[1735081001746,7.93244756,197.26,197.19,11.18374756]
[1735081004148,7.93244756,197.24,197.17,10.47014756]
[1735081004342,7.93244756,197.24,197.15,22.70416473]
[1735081004645,7.93244756,197.24,197.16,7.93244756]
[1735081005145,7.93244756,197.22,197.16,7.93244756]
[1735081005546,7.93244756,197.22,197.14,73.82932138]
[1735081005547,7.93244756,197.22,197.14,13.72954756]
[1735081005746,3.08,197.21,197.14,13.72954756]
[1735081008152,7.93244756,197.2,197.14,13.72954756]
[1735081009151,11.01244756,197.2,197.14,13.72954756]
[1735081009453,11.01244756,197.2,197.14,1.5975]
[1735081009651,3.08,197.2,197.14,1.5975]
[1735081009851,7.93244756,197.19,197.12,7.93244756]
[1735081010351,7.93244756,197.19,197.1,33.16701229]
[1735081010541,7.93244756,197.17,197.1,33.16701229]
[1735081011051,7.93244756,197.17,197.1,23.63556473]
[1735081011348,7.93244756,197.15,197.1,21.09696473]
[1735081011543,3.08,197.14,197.08,10.47124756]
[1735081013253,3.08,197.14,197.04,81.65377544]
[1735081013254,7.93244756,197.13,197.07,2.539]
[1735081013448,7.93244756,197.13,197.05,7.93244756]
[1735081013853,7.93244756,197.13,197.06,2.5391]
[1735081014053,7.93244756,197.11,197.06,2.5391]
[1735081014548,7.93244756,197.11,197.05,2.5393]
[1735081015752,7.93244756,197.11,197.04,7.93244756]
[1735081016052,7.93244756,197.11,197.04,10.47184756]
[1735081016454,7.93244756,197.11,197.03,3.2646]
[1735081016652,7.93244756,197.09,197.03,3.2646]
[1735081016850,7.93244756,197.09,197.02,10.47194756]
[1735081017551,7.93244756,197.09,197.02,2.5395]
[1735081017756,7.93244756,197.07,197.01,2.5398]
[1735081018354,7.93244756,197.05,197.01,2.5398]
[1735081018555,7.93244756,197.07,197.01,2.5398]
[1735081019655,3.08,197.08,197.01,2.5398]
[1735081019855,11.01244756,197.08,197.01,2.5398]
[1735081020355,7.93244756,197.06,196.99,2.5399]
[1735081020552,7.93244756,197.06,196.98,1.6493]
[1735081020750,7.93244756,197.06,196.98,9.58174756]
[1735081021654,7.93244756,197.06,197.0,2.5399]
[1735081023357,3.08,197.08,197.0,2.5399]
[1735081023557,7.93244756,197.05,197.0,2.5399]
[1735081027260,7.93244756,197.05,197.01,2.5397]
[1735081027557,2.0947208,197.12,196.98,9.58174756]
[1735081027755,7.93244756,197.09,197.07,2.539]
[1735081027955,7.93244756,197.09,197.01,7.93244756]
[1735081028454,7.93244756,197.09,197.08,2.5389]
[1735081029560,11.01244756,197.11,197.08,2.5389]
[1735081030059,11.01244756,197.11,197.09,2.5388]
[1735081030456,3.08,197.11,197.03,7.93244756]
[1735081030758,3.08,197.11,197.1,2.5386]
[1735081031154,10.02716836,197.12,197.1,2.5386]
[1735081031459,7.93244756,197.12,197.1,2.5386]
[1735081038764,7.93244756,197.12,197.04,3.1601]
[1735081038971,7.93244756,197.12,197.09,2.5387]
[1735081043877,7.93244756,197.12,197.05,1.6309]
[1735081044174,7.93244756,197.12,197.08,2.5389]
[1735081046275,3.08,197.14,197.08,2.5389]
[1735081046474,7.93244756,197.11,197.08,2.5389]
[1735081048779,56.48824348,197.29,197.11,2.5385]
[1735081048978,7.93244756,197.15,197.08,7.93244756]
[1735081050277,7.93244756,197.15,197.09,3.58685747]
[1735081050478,7.93244756,197.15,197.12,2.5383]
[1735081056983,3.08,197.18,197.13,2.5382]
[1735081057283,7.93244756,197.15,197.13,2.5382]
[1735081062688,7.93244756,197.15,197.08,21.09696473]
[1735081063190,7.93244756,197.15,197.13,2.5382]
[1735081067886,1.5849,197.23,197.13,2.5382]
[1735081068190,7.93244756,197.16,197.14,2.5381]
[1735081072596,7.93244756,197.18,197.14,2.5381]
[1735081073894,7.93244756,197.16,197.14,2.5381]
[1735081074195,7.93244756,197.16,197.08,21.09696473]
[1735081074400,7.93244756,197.12,197.08,21.09696473]
[1735081074594,7.93244756,197.1,197.08,21.09696473]
[1735081075397,7.93244756,197.1,197.06,2.5391]
[1735081075596,7.93244756,197.1,197.05,53.05370641]
[1735081075896,7.93244756,197.1,197.07,2.539]
[1735081076096,7.93244756,197.1,197.05,53.05370641]
[1735081076395,7.93244756,197.08,197.05,53.05370641]
[1735081076590,7.93244756,197.08,197.05,31.95674168]
[1735081081903,7.93244756,197.08,197.03,2.5395]
[1735081082405,7.93244756,197.08,197.02,2.5396]
[1735081083301,7.93244756,197.06,197.02,2.5396]
[1735081083499,7.93244756,197.04,197.0,35.4543471]
[1735081083695,7.93244756,197.01,197.0,35.4543471]
[1735081083901,7.93244756,197.01,196.99,35.4543471]
[1735081084096,11.01244756,197.0,196.99,35.4543471]
[1735081085004,11.01244756,197.0,196.93,13.02986867]
[1735081085206,11.01244756,197.0,196.95,2.5405]
[1735081090498,7.93244756,196.98,196.92,2.5409]
[1735081090902,7.93244756,196.98,196.89,7.93244756]
[1735081091607,7.93244756,196.98,196.94,2.5407]
[1735081092209,7.93244756,196.98,196.91,7.93244756]
[1735081092409,7.93244756,197.0,196.96,2.5404]
[1735081092806,11.01244756,197.0,196.96,2.5404]
[1735081093309,7.93244756,196.98,196.96,2.5404]
[1735081094008,3.08,197.0,196.91,7.93244756]
[1735081094208,7.93244756,196.99,196.91,7.93244756]
[1735081095108,7.93244756,196.99,196.95,2.5405]
[1735081097710,7.93244756,196.99,196.95,2.5406]
[1735081100013,11.01244756,196.99,196.95,2.5406]
[1735081101915,3.08,196.99,196.95,2.5406]
[1735081102214,7.93244756,196.98,196.95,2.5406]
[1735081111626,7.93244756,196.98,196.9,7.93244756]
[1735081111826,7.93244756,196.98,196.95,2.5406]
[1735081112227,7.93244756,196.98,196.93,2.5407]
[1735081113131,7.93244756,196.98,196.94,2.5407]
[1735081122928,7.93244756,196.98,196.92,21.09696473]
[1735081123131,7.93244756,196.98,196.93,2.5408]
[1735081133840,7.93244756,196.98,196.91,21.09696473]
[1735081134041,7.93244756,196.98,196.92,2.5409]
[1735081135139,11.01244756,196.98,196.92,2.5409]
[1735081140948,11.01244756,196.98,196.93,3.61462799]
[1735081142148,11.01244756,196.98,196.92,2.5409]
[1735081143248,11.01244756,196.98,196.92,23.63786473]
[1735081144150,11.01244756,196.98,196.93,3.61490562]
[1735081145251,11.01244756,196.98,196.92,23.63786473]
[1735081147051,11.01244756,196.98,196.93,3.61531242]
[1735081148453,11.01244756,196.98,196.92,23.63786473]
[1735081150249,11.01244756,196.98,196.93,3.61553119]
[1735081150952,11.01244756,196.98,196.92,23.63786473]
[1735081151153,7.93244756,196.98,196.92,23.63786473]
[1735081151349,3.08,196.97,196.92,23.63786473]
[1735081152958,3.08,196.97,196.93,3.61557709]
[1735081153958,3.08,196.97,196.92,23.63786473]
[1735081154360,3.08,196.97,196.92,21.09696473]
[1735081154558,7.93244756,196.96,196.92,21.09696473]
[1735081155557,7.93244756,196.94,196.92,21.09696473]
[1735081156156,7.93244756,196.94,196.93,3.61577314]
[1735081157161,7.93244756,196.94,196.86,22.60416473]
[1735081157459,7.93244756,196.91,196.86,22.60416473]
[1735081158155,11.01244756,196.91,196.86,21.09696473]
[1735081158362,7.93244756,196.89,196.86,21.09696473]
[1735081158561,7.93244756,196.87,196.85,21.09696473]
[1735081159258,7.93244756,196.89,196.83,22.63316473]
[1735081159453,7.93244756,196.89,196.84,2.542]
[1735081160158,7.93244756,196.89,196.83,22.63316473]
[1735081160360,7.93244756,196.87,196.83,21.09696473]
[1735081160662,7.93244756,196.91,196.83,29.02941229]
[1735081161059,7.93244756,196.91,196.84,3.60626426]
[1735081161460,3.08,196.93,196.85,7.93244756]
[1735081161657,3.08,196.94,196.87,7.93244756]
[1735081162057,7.93244756,196.95,196.87,7.93244756]
[1735081162260,1.5961,196.99,196.87,7.93244756]
[1735081162465,3.08,196.98,196.87,7.93244756]
[1735081162667,7.93244756,196.95,196.88,1.6467]
[1735081163259,7.93244756,196.95,196.88,5.25296426]
[1735081163464,7.93244756,196.95,196.91,2.541]
[1735081167970,7.93244756,196.95,196.88,1.6467]
[1735081168271,7.93244756,196.95,196.92,2.5409]
[1735081171575,7.93244756,196.96,196.92,2.5409]
[1735081172074,7.93244756,196.96,196.93,2.5408]
[1735081172777,7.93244756,196.96,196.89,7.93244756]
[1735081172978,3.08,196.97,196.94,2.5407]
[1735081173277,1.76092245,197.0,196.93,7.93244756]
[1735081173475,3.08,197.05,197.01,2.5397]
[1735081173675,1.5345,197.1,196.97,7.93244756]
[1735081173974,54.54703222,197.11,197.01,7.93244756]
[1735081173975,7.93244756,197.09,197.01,7.93244756]
[1735081174275,11.01244756,197.09,197.01,7.93244756]
[1735081175877,7.93244756,197.09,197.01,7.93244756]
[1735081176475,7.93244756,197.09,197.05,2.5392]
[1735081176980,7.93244756,197.09,197.06,2.5392]
[1735081178283,7.93244756,197.1,197.06,2.5392]
[1735081178584,4.80703222,197.11,197.06,2.5392]
[1735081178778,7.93244756,197.1,197.06,2.5392]
[1735081183186,7.93244756,197.1,197.07,2.539]
[1735081185991,7.93244756,197.1,197.06,2.5391]
[1735081186197,7.93244756,197.08,196.98,4.7759]
[1735081186496,7.93244756,197.06,196.98,12.70834756]
[1735081186893,7.93244756,197.04,196.98,12.70834756]
[1735081187398,7.93244756,197.06,197.0,2.5399]
[1735081187697,7.93244756,197.06,196.98,12.70834756]
[1735081187897,3.08,197.05,196.98,12.70834756]
[1735081188791,3.08,197.05,197.02,2.5397]
[1735081194403,3.08,197.05,197.0,2.5399]
[1735081196606,3.08,197.05,197.01,2.5398]
[1735081200204,7.93244756,197.06,197.01,2.5398]
[1735081200406,3.08,197.05,196.98,3.1505]
[1735081200606,3.08,197.06,197.02,2.5396]
[1735081200802,11.01244756,197.06,196.9,21.09696473]
[1735081201006,11.01244756,197.06,196.98,2.5401]
[1735081201201,7.93244756,197.04,196.91,3.1778]
[1735081201403,3.08,197.06,196.94,7.93244756]
[1735081201610,7.93244756,197.04,196.99,2.54]
[1735081201908,3.08,197.04,196.96,7.93244756]
[1735081202111,3.08,197.05,196.96,7.93244756]
[1735081202305,3.08,197.05,197.01,2.5397]
[1735081202512,7.93244756,197.06,196.98,7.93244756]
[1735081202812,7.93244756,197.08,197.0,7.93244756]
[1735081203016,3.08,197.07,197.04,2.5393]
[1735081203311,11.01244756,197.08,197.04,2.5393]
[1735081209922,7.93244756,197.09,197.02,7.93244756]
[1735081210518,7.93244756,197.09,197.07,2.5389]
[1735081211724,7.93244756,197.11,197.07,2.5389]
[1735081212013,7.93244756,197.12,197.06,7.93244756]
[1735081212213,7.93244756,197.14,197.06,7.93244756]
[1735081212519,7.93244756,197.14,197.08,7.93244756]
[1735081212720,7.93244756,197.14,197.06,7.93244756]
[1735081213716,7.93244756,197.14,197.1,2.5386]
[1735081216725,3.06,197.16,197.1,2.5386]
[1735081216923,7.93244756,197.11,197.03,1.6545]
[1735081217222,1.6469,197.21,196.88,56.25857262]
[1735081217223,7.93244756,197.09,197.0,7.93244756]
[1735081217422,3.06,197.08,197.0,7.93244756]
[1735081217622,7.93244756,197.07,197.0,7.93244756]
[1735081217921,7.93244756,197.07,196.99,1.6253]
[1735081218125,7.93244756,197.05,196.99,1.6253]
[1735081218320,7.93244756,197.05,196.96,7.93244756]
[1735081218720,7.93244756,197.05,196.98,2.5401]
[1735081219025,7.93244756,197.01,196.93,1.5265]
[1735081219220,7.93244756,196.99,196.94,2.5406]
[1735081221121,1.6641,197.04,196.97,2.5402]
[1735081221122,7.93244756,197.01,196.97,2.5402]
[1735081221715,3.06,197.02,196.97,2.5402]
[1735081222324,7.93244756,197.01,196.97,2.5402]
[1735081223725,7.93244756,197.01,196.96,2.5404]
[1735081224922,7.93244756,196.99,196.89,3.06]
[1735081225121,7.93244756,196.99,196.87,3.1418]
[1735081225122,7.93244756,196.97,196.9,7.93244756]
[1735081225521,7.93244756,196.95,196.88,7.93244756]
[1735081225722,7.93244756,196.93,196.85,36.41136952]
[1735081225923,7.93244756,196.93,196.87,7.93244756]
[1735081226226,10.99244756,196.95,196.87,7.93244756]
[1735081227422,10.99244756,196.95,196.9,2.5412]
[1735081228226,7.93244756,196.93,196.9,2.5412]
[1735081229928,10.99244756,196.95,196.9,2.5412]
[1735081230824,7.93244756,196.95,196.9,2.5412]
[1735081231020,7.93244756,196.93,196.9,2.5412]
[1735081232024,3.06,196.95,196.9,2.5412]
[1735081232431,7.93244756,196.94,196.9,2.5412]
[1735081233235,3.06,196.95,196.9,2.5412]
[1735081234730,3.06,196.95,196.88,2.5414]
[1735081237437,7.93244756,196.94,196.85,28.47892196]
[1735081237638,7.93244756,196.94,196.87,2.5416]
[1735081239640,7.93244756,196.92,196.87,2.5416]
[1735081248755,7.93244756,196.92,196.8,3.0267]
[1735081248950,7.93244756,196.9,196.81,7.93244756]
[1735081249154,7.93244756,196.88,196.8,3.0267]
[1735081249356,7.93244756,196.88,196.79,7.93244756]
[1735081249655,3.06,196.87,196.8,2.5425]
[1735081250655,3.06,196.87,196.81,2.5423]
[1735081251855,7.93244756,196.86,196.81,2.5423]
[1735081254160,7.93244756,196.86,196.74,3.06]
[1735081254356,7.93244756,196.84,196.78,7.93244756]
[1735081254561,7.93244756,196.84,196.78,2.5427]
[1735081255153,7.93244756,196.84,196.79,2.5425]
[1735081255357,7.93244756,196.84,196.76,7.93244756]
[1735081256262,7.93244756,196.84,196.78,2.5426]
[1735081256960,7.93244756,196.84,196.79,2.5425]
[1735081257155,7.93244756,196.84,196.72,1.615]
[1735081257363,7.93244756,196.82,196.75,7.93244756]
[1735081257665,7.93244756,196.82,196.76,2.5428]
[1735081258558,7.93244756,196.82,196.77,2.5427]
[1735081259259,7.93244756,196.82,196.75,7.93244756]
[1735081259460,7.93244756,196.84,196.79,2.5425]
[1735081260561,3.06,196.83,196.79,2.5425]
[1735081260762,3.06,196.83,196.77,7.93244756]
[1735081260965,3.06,196.83,196.8,2.5422]
[1735081261557,3.06,196.83,196.77,7.93244756]
[1735081261762,3.06,196.83,196.81,2.5422]
[1735081263669,7.93244756,196.82,196.81,2.5422]
[1735081266371,3.06,196.84,196.81,2.5422]
[1735081266372,7.93244756,196.83,196.81,2.5422]
[1735081266562,3.06,196.84,196.81,2.5422]
[1735081266760,10.99244756,196.84,196.81,2.5422]
[1735081269165,7.93244756,196.82,196.78,2.5425]
[1735081269561,7.93244756,196.8,196.78,2.5425]
[1735081270671,7.93244756,196.8,196.74,2.543]
[1735081270872,3.06,196.82,196.74,7.93244756]
[1735081271175,10.99244756,196.82,196.74,7.93244756]
[1735081271873,10.99244756,196.82,196.8,2.5423]
[1735081274374,10.99244756,196.82,196.76,2.5428]
[1735081274577,7.93244756,196.78,196.76,2.5428]
[1735081275973,7.93244756,196.78,196.75,2.5429]
[1735081276177,7.93244756,196.78,196.7,9.50034756]
[1735081276563,7.93244756,196.78,196.74,2.543]
[1735081276974,7.93244756,196.78,196.7,9.50034756]
[1735081277972,3.06,196.79,196.72,7.93244756]
[1735081278269,10.99244756,196.8,196.72,7.93244756]
[1735081278571,1.6143,196.9,196.74,7.93244756]
[1735081278874,7.93244756,196.83,196.74,7.93244756]
[1735081279575,7.93244756,196.83,196.81,2.5421]
[1735081280772,7.93244756,196.83,196.76,7.93244756]
[1735081280968,7.93244756,196.85,196.78,7.93244756]
[1735081281273,1.6143,196.9,196.8,7.93244756]
[1735081281575,84.73236522,197.05,196.84,7.93244756]
[1735081281874,7.93244756,196.92,196.84,7.93244756]
[1735081282971,7.93244756,196.92,196.86,2.5415]
[1735081283171,7.93244756,196.9,196.82,9.55154756]
[1735081284271,7.93244756,196.88,196.82,1.6191]
[1735081284579,7.93244756,196.86,196.83,2.5419]
[1735081285372,7.93244756,196.86,196.81,2.5421]
[1735081285673,7.93244756,196.82,196.75,6.2342]
[1735081286175,7.93244756,196.82,196.75,14.16664756]
[1735081286373,7.93244756,196.82,196.75,11.10664756]
[1735081286575,7.93244756,196.82,196.79,2.5423]
[1735081287969,7.93244756,196.82,196.77,2.5427]
[1735081289473,7.93244756,196.8,196.77,2.5427]
[1735081291272,10.99244756,196.8,196.77,2.5427]
[1735081291981,10.99244756,196.8,196.73,7.93244756]
[1735081292172,7.93244756,196.78,196.71,7.93244756]
[1735081292778,7.93244756,196.78,196.74,2.543]
[1735081293385,7.93244756,196.78,196.71,7.93244756]
[1735081294079,10.99244756,196.8,196.73,2.5431]
[1735081294384,10.99244756,196.8,196.71,7.93244756]
[1735081294683,10.99244756,196.8,196.66,4.6749]
[1735081294879,7.93244756,196.78,196.66,4.6749]
[1735081295079,7.93244756,196.78,196.69,7.93244756]
[1735081295280,7.93244756,196.76,196.69,7.93244756]
[1735081296483,7.93244756,196.76,196.73,2.5432]
[1735081297284,7.93244756,196.76,196.67,7.93244756]
[1735081298376,7.93244756,196.76,196.73,2.5431]
[1735081300285,7.93244756,196.74,196.67,7.93244756]
[1735081300486,7.93244756,196.74,196.71,2.5435]